bitfinex/quotes_BTCUSD_20240727
["timestamp","ask_amount","ask_price","bid_price","bid_amount"]
[1722067844789,0.74410922,68277.0,68276.0,0.002484]
[1722067844988,0.79865647,68277.0,68276.0,0.002484]
[1722067846646,0.82164284,68277.0,68276.0,0.002484]
[1722067847625,0.76709559,68277.0,68276.0,0.002484]
[1722067847870,0.82446979,68277.0,68276.0,0.002484]
[1722067851232,0.82447346,68277.0,68276.0,0.002484]
[1722067851376,0.95000038,68277.0,68276.0,0.002484]
[1722067854436,0.89269302,68277.0,68276.0,0.002484]
[1722067854750,0.95092053,68277.0,68276.0,0.002484]
[1722067854956,0.95010126,68277.0,68276.0,0.002484]
[1722067856065,0.97308801,68277.0,68276.0,0.002484]
[1722067857849,0.76709597,68277.0,68276.0,0.002484]
[1722067858052,0.97318876,68277.0,68276.0,0.002484]
[1722067860298,0.97318876,68277.0,68276.0,0.078484]
[1722067860791,0.76709597,68277.0,68276.0,0.078484]
[1722067861001,0.97320452,68277.0,68276.0,0.078484]
[1722067863983,0.97317219,68277.0,68276.0,0.078484]
[1722067864189,0.95018544,68277.0,68276.0,0.078484]
[1722067867628,0.95015809,68277.0,68276.0,0.078484]
[1722067870856,0.74410922,68277.0,68276.0,0.078484]
[1722067871104,0.95001026,68277.0,68276.0,0.078484]
[1722067872889,0.97299684,68277.0,68276.0,0.078484]
[1722067873315,0.95001026,68277.0,68276.0,0.078484]
[1722067874373,0.80145016,68277.0,68276.0,0.078484]
[1722067874544,0.94992956,68277.0,68276.0,0.078484]
[1722067875843,0.94992956,68277.0,68276.0,0.002484]
[1722067876587,0.97291623,68277.0,68276.0,0.002484]
[1722067877776,0.97266383,68277.0,68276.0,0.002484]
[1722067878231,0.94967716,68277.0,68276.0,0.002484]
[1722067878385,1.24260116,68277.0,68276.0,0.002484]
[1722067878752,1.09411751,68277.0,68276.0,0.002484]
[1722067879190,1.17831751,68277.0,68276.0,0.002484]
[1722067879473,0.88539351,68277.0,68276.0,0.002484]
[1722067880295,0.80119351,68277.0,68276.0,0.002484]
[1722067880518,0.88539351,68277.0,68276.0,0.002484]
[1722067881252,0.88567733,68277.0,68276.0,0.002484]
[1722067881645,0.908664,68277.0,68276.0,0.002484]
[1722067881800,0.88567733,68277.0,68276.0,0.002484]
[1722067884416,0.88567733,68277.0,68276.0,0.150484]
[1722067884613,0.908664,68277.0,68276.0,0.150484]
[1722067884820,1.05710594,68277.0,68276.0,0.150484]
[1722067885993,1.05675807,68277.0,68276.0,0.150484]
[1722067888177,1.05652124,68277.0,68276.0,0.150484]
[1722067891498,0.99936451,68277.0,68276.0,0.150484]
[1722067891740,1.05285324,68277.0,68276.0,0.083984]
[1722067891944,0.85094802,68277.0,68276.0,0.083984]
[1722067892137,1.05285381,68277.0,68276.0,0.083984]
[1722067892697,1.05285381,68277.0,68276.0,0.002484]
[1722067894258,1.02986714,68277.0,68276.0,0.002484]
[1722067894966,0.88145023,68277.0,68276.0,0.002484]
[1722067895187,1.02986677,68277.0,68276.0,0.002484]
[1722067897344,1.05285344,68277.0,68276.0,0.002484]
[1722067898509,1.0538447,68277.0,68276.0,0.002484]
[1722067898715,1.02983987,68277.0,68276.0,0.002484]
[1722067901972,1.02622946,68277.0,68276.0,0.002484]
[1722067902427,1.31915346,68277.0,68276.0,0.002484]
[1722067903196,1.02622946,68277.0,68276.0,0.002484]
[1722067903327,0.90079875,68277.0,68276.0,0.002484]
[1722067903914,1.19372275,68277.0,68276.0,0.002484]
[1722067904177,0.90079875,68277.0,68276.0,0.002484]
[1722067904437,0.95079875,68277.0,68276.0,0.002484]
[1722067904849,1.38242275,68277.0,68276.0,0.002484]
[1722067905226,1.38162896,68277.0,68276.0,0.002484]
[1722067905865,2.17481253,68277.0,68276.0,0.002484]
[1722067906017,0.982362,68272.0,68271.0,0.000924]
[1722067906218,2.02259307,68272.0,68271.0,0.000924]
[1722067907000,2.07259307,68272.0,68271.0,0.000924]
[1722067907339,2.40204825,68272.0,68271.0,0.000924]
[1722067907521,2.42403148,68272.0,68271.0,0.000924]
[1722067907930,2.6045763,68272.0,68271.0,0.001]
[1722067908532,2.6145763,68272.0,68271.0,0.002]
[1722067908779,2.61570466,68272.0,68271.0,0.002]
[1722067909241,1.618275,68271.0,68270.0,0.03070139]
[1722067909484,1.85204227,68271.0,68270.0,0.03070139]
[1722067910387,1.85084443,68271.0,68270.0,0.03070139]
[1722067910593,1.85176842,68271.0,68270.0,0.03070139]
[1722067911012,1.86576842,68271.0,68270.0,0.03170139]
[1722067911363,1.87976842,68271.0,68270.0,0.03170139]
[1722067912159,1.87889906,68271.0,68270.0,0.03170139]
[1722067912424,1.79621109,68271.0,68270.0,0.03170139]
[1722067912623,1.88041109,68271.0,68270.0,0.03170139]
[1722067913030,1.8794871,68271.0,68270.0,0.03170139]
[1722067913228,1.88041109,68271.0,68270.0,0.03170139]
[1722067914523,1.8794871,68271.0,68270.0,0.03170139]
[1722067914913,1.88041109,68271.0,68270.0,0.03170139]
[1722067915311,1.8794871,68271.0,68270.0,0.03170139]
[1722067915511,1.87938453,68271.0,68270.0,0.03170139]
[1722067916593,1.88016608,68271.0,68270.0,0.03170139]
[1722067916795,1.87938453,68271.0,68270.0,0.03170139]
[1722067917397,2.08582637,68271.0,68270.0,0.03170139]
[1722067917862,2.23608594,68271.0,68270.0,0.03170139]
[1722067919103,2.23600337,68271.0,68270.0,0.03170139]
[1722067919878,2.0857438,68271.0,68270.0,0.03170139]
[1722067920082,2.0015438,68271.0,68270.0,0.03170139]
[1722067920276,2.0857438,68271.0,68270.0,0.03170139]
[1722067920440,2.10873369,68271.0,68270.0,0.03170139]
[1722067921230,1.96100169,68271.0,68270.0,0.03170139]
[1722067921607,1.91219289,68271.0,68270.0,0.03170139]
[1722067921906,1.93796187,68271.0,68270.0,0.03170139]
[1722067924025,1.85376187,68271.0,68270.0,0.03170139]
[1722067924350,1.39501187,68271.0,68270.0,0.03170139]
[1722067925256,1.41831036,68271.0,68270.0,0.03170139]
[1722067927146,1.66831036,68271.0,68270.0,0.03170139]
[1722067928620,1.66824078,68271.0,68270.0,0.03170139]
[1722067929632,1.64525118,68271.0,68270.0,0.03170139]
[1722067932064,1.64512309,68271.0,68270.0,0.03170139]
[1722067932850,1.66811257,68271.0,68270.0,0.03170139]
[1722067933697,1.66809377,68271.0,68270.0,0.03170139]
[1722067934280,1.75058905,68271.0,68270.0,0.03170139]
[1722067935555,1.61924248,68271.0,68270.0,0.03170139]
[1722067935755,1.75058042,68271.0,68270.0,0.03170139]
[1722067936309,1.50058042,68271.0,68270.0,0.03170139]
[1722067936507,1.75058042,68271.0,68270.0,0.03170139]
[1722067937082,1.07343042,68271.0,68270.0,0.10800139]
[1722067937296,1.07343042,68271.0,68270.0,0.16890139]
[1722067937297,0.99094339,68271.0,68270.0,0.16890139]
[1722067937494,0.67500391,68271.0,68270.0,0.16890139]
[1722067938115,0.66100391,68271.0,68270.0,0.16890139]
[1722067938323,0.94495391,68271.0,68270.0,0.16790139]
[1722067938734,0.899103,68271.0,68270.0,0.16790139]
[1722067938938,0.94834578,68271.0,68270.0,0.16790139]
[1722067940158,0.65539578,68271.0,68270.0,0.16790139]
[1722067940359,0.36244578,68271.0,68270.0,0.16790139]
[1722067940562,0.65539578,68271.0,68270.0,0.16790139]
[1722067940951,0.67838409,68271.0,68270.0,0.16790139]
[1722067941203,0.65539578,68271.0,68270.0,0.16790139]
[1722067942205,0.65525653,68271.0,68270.0,0.16790139]
[1722067942858,0.65609653,68271.0,68270.0,0.16790139]
[1722067944268,0.67908484,68271.0,68270.0,0.16790139]
[1722067944468,0.67913604,68271.0,68270.0,0.16790139]
[1722067945299,0.38618604,68271.0,68270.0,0.16790139]
[1722067945595,0.36319773,68271.0,68270.0,0.16790139]
[1722067945899,0.36323722,68271.0,68270.0,0.16790139]
[1722067946505,0.65618722,68271.0,68270.0,0.16790139]
[1722067947689,0.36323722,68271.0,68270.0,0.16790139]
[1722067948614,0.26323722,68271.0,68270.0,0.16790139]
[1722067948815,0.28622539,68271.0,68270.0,0.16790139]
[1722067949173,0.23703117,68271.0,68270.0,0.16790139]
[1722067949372,0.28623359,68271.0,68270.0,0.16790139]
[1722067950116,0.26324542,68271.0,68270.0,0.16790139]
[1722067952652,0.214043,68271.0,68270.0,0.16790139]
[1722067952769,0.26321837,68271.0,68270.0,0.16790139]
[1722067953179,0.28620654,68271.0,68270.0,0.16790139]
[1722067953860,0.26321837,68271.0,68270.0,0.16790139]
[1722067954197,0.11674337,68271.0,68270.0,0.16790139]
[1722067956033,0.067568,68271.0,68270.0,0.16790139]
[1722067956251,0.11679178,68271.0,68270.0,0.16790139]
[1722067956459,0.067568,68271.0,68270.0,0.16790139]
[1722067956661,0.00884,68271.0,68270.0,0.90028639]
[1722067956861,0.03182769,68271.0,68270.0,0.90028639]
[1722067957066,0.05256254,68271.0,68270.0,0.90028639]
[1722067957333,0.00884,68271.0,68270.0,0.90028639]
[1722067957527,0.00584,68271.0,68270.0,0.90028639]
[1722067957731,0.00084,68271.0,68270.0,0.90028639]
[1722067957947,0.00884,68271.0,68270.0,0.90028639]
[1722067958087,0.00584,68271.0,68270.0,0.90028639]
[1722067958272,0.00584,68271.0,68270.0,0.60733239]
[1722067958476,0.00184,68271.0,68270.0,0.60933239]
[1722067959275,0.00284,68271.0,68270.0,0.60933239]
[1722067962081,0.00284,68271.0,68270.0,0.93165639]
[1722067962826,0.00184,68271.0,68270.0,0.93165639]
[1722067963925,0.00084,68271.0,68270.0,0.92965639]
[1722067964126,0.00084,68271.0,68270.0,0.93965639]
[1722067964338,0.00184,68271.0,68270.0,0.93965639]
[1722067964571,0.02482682,68271.0,68270.0,0.92965639]
[1722067964978,0.00284,68271.0,68270.0,0.93965639]
[1722067965091,0.00384,68271.0,68270.0,0.94365639]
[1722067965731,0.00284,68271.0,68270.0,0.93965639]
[1722067965932,0.00384,68271.0,68270.0,0.94865639]
[1722067967334,0.00384,68271.0,68270.0,0.65570239]
[1722067967860,0.00384,68271.0,68270.0,0.94865639]
[1722067968181,0.02682667,68271.0,68270.0,0.65570239]
[1722067968612,0.02682667,68271.0,68270.0,0.21627139]
[1722067968957,0.17330167,68271.0,68270.0,0.18690139]
[1722067969108,0.23884581,68271.0,68270.0,0.18690139]
[1722067969309,0.150315,68271.0,68270.0,0.18690139]
[1722067970101,0.23568718,68271.0,68270.0,0.17690139]
[1722067970618,0.23668718,68271.0,68270.0,0.18390139]
[1722067970818,0.23568718,68271.0,68270.0,0.17690139]
[1722067971041,0.23568718,68271.0,68270.0,0.17490139]
[1722067971390,0.23568718,68271.0,68270.0,0.04070139]
[1722067971391,0.87187545,68271.0,68270.0,0.04070139]
[1722067971587,0.78450327,68271.0,68270.0,0.04070139]
[1722067971814,0.78450327,68271.0,68270.0,0.03770139]
[1722067972541,0.80749074,68271.0,68270.0,0.03770139]
[1722067972821,0.80849074,68271.0,68270.0,0.11890139]
[1722067972936,0.51554074,68271.0,68270.0,0.11890139]
[1722067974649,0.07611574,68271.0,68270.0,0.11890139]
[1722067974855,0.22259074,68271.0,68270.0,0.11890139]
[1722067975061,0.07611574,68271.0,68270.0,0.11890139]
[1722067975913,0.22259074,68271.0,68270.0,0.11890139]
[1722067976458,0.33184896,68271.0,68270.0,0.11991539]
[1722067976816,0.33275098,68271.0,68270.0,0.11991539]
[1722067979289,0.51642524,68271.0,68270.0,0.11991539]
[1722067979971,0.22347524,68271.0,68270.0,0.11991539]
[1722067980167,0.17230247,68271.0,68270.0,0.11991539]
[1722067980395,0.22325453,68271.0,68270.0,0.11991539]
[1722067981422,0.20026706,68271.0,68270.0,0.11991539]
[1722067981579,0.49321706,68271.0,68270.0,0.11991539]
[1722067981778,0.20026706,68271.0,68270.0,0.11991539]
[1722067982884,0.20044449,68271.0,68270.0,0.11991539]
[1722067983397,0.05396949,68271.0,68270.0,0.11991539]
[1722067983824,0.20044449,68271.0,68270.0,0.11991539]
[1722067984043,0.05396949,68271.0,68270.0,0.11991539]
[1722067984593,0.20044449,68271.0,68270.0,0.11991539]
[1722067986351,0.20074216,68271.0,68270.0,0.11991539]
[1722067989313,0.22372963,68271.0,68270.0,0.11991539]
[1722067989508,0.20074216,68271.0,68270.0,0.11991539]
[1722067989894,0.20055165,68271.0,68270.0,0.11991539]
[1722067990509,0.49350165,68271.0,68270.0,0.11991539]
[1722067991009,0.20055165,68271.0,68270.0,0.11991539]
[1722067991621,0.05407665,68271.0,68270.0,0.11991539]
[1722067992726,0.07706412,68271.0,68270.0,0.11991539]
[1722067993625,0.22362611,68271.0,68270.0,0.11991539]
[1722067994607,0.07715111,68271.0,68270.0,0.11991539]
[1722067996437,0.22362611,68271.0,68270.0,0.11991539]
[1722067996805,0.22359463,68271.0,68270.0,0.11991539]
[1722067997478,0.07711963,68271.0,68270.0,0.11991539]
[1722067998580,0.22359463,68271.0,68270.0,0.11991539]
[1722068000127,0.22372552,68271.0,68270.0,0.11991539]
[1722068003783,0.2236729,68271.0,68270.0,0.11991539]
[1722068003986,0.8095729,68271.0,68270.0,0.11991539]
[1722068004116,0.8095729,68271.0,68270.0,0.04071539]
[1722068004316,1.3303229,68271.0,68270.0,0.04071539]
[1722068005275,1.30733543,68271.0,68270.0,0.04071539]
[1722068005696,1.30733543,68271.0,68270.0,0.03871539]
[1722068005848,1.30633543,68271.0,68270.0,0.03871539]
[1722068006047,1.30633543,68271.0,68270.0,0.04071539]
[1722068006256,1.30548894,68271.0,68270.0,0.04071539]
[1722068006458,1.30548894,68271.0,68270.0,0.03871539]
[1722068006851,1.30848894,68271.0,68270.0,0.03871539]
[1722068007046,1.30848894,68271.0,68270.0,0.03171539]
[1722068007047,1.35749332,68271.0,68270.0,0.03171539]
[1722068007428,1.35749332,68271.0,68270.0,0.03571539]
[1722068007908,1.35749332,68271.0,68270.0,0.03171539]
[1722068008065,1.35949332,68271.0,68270.0,0.03171539]
[1722068008681,1.38248178,68271.0,68270.0,0.03171539]
[1722068009525,1.33248178,68271.0,68270.0,0.03171539]
[1722068009665,1.38340577,68271.0,68270.0,0.03171539]
[1722068009865,1.33340577,68271.0,68270.0,0.03171539]
[1722068010072,1.31041731,68271.0,68270.0,0.03171539]
[1722068010524,1.31052309,68271.0,68270.0,0.03171539]
[1722068013107,1.33351148,68271.0,68270.0,0.03171539]
[1722068013347,1.24931148,68271.0,68270.0,0.03171539]
[1722068013548,1.3095991,68271.0,68270.0,0.03171539]
[1722068014057,1.31089784,68271.0,68270.0,0.03171539]
[1722068014946,1.36089784,68271.0,68270.0,0.03171539]
[1722068015156,1.22577385,68271.0,68270.0,0.03171539]
[1722068015349,1.31089784,68271.0,68270.0,0.03171539]
[1722068015735,1.30997385,68271.0,68270.0,0.03171539]
[1722068015931,1.31089784,68271.0,68270.0,0.03171539]
[1722068016820,1.33388619,68271.0,68270.0,0.03171539]
[1722068017322,1.33498648,68271.0,68270.0,0.03171539]
[1722068017535,1.25078648,68271.0,68270.0,0.03171539]
[1722068017741,1.33498648,68271.0,68270.0,0.03171539]
[1722068019082,1.33406249,68271.0,68270.0,0.03171539]
[1722068019282,1.33498648,68271.0,68270.0,0.03171539]
[1722068019706,1.25078648,68271.0,68270.0,0.03171539]
[1722068019910,1.33406249,68271.0,68270.0,0.03171539]
[1722068020087,1.19046249,68271.0,68270.0,0.03171539]
[1722068020655,1.13835335,68271.0,68270.0,0.03171539]
[1722068020828,1.19079642,68271.0,68270.0,0.03171539]
[1722068021034,1.13835335,68271.0,68270.0,0.03171539]
[1722068021247,1.19079634,68271.0,68270.0,0.03171539]
[1722068021816,1.10659634,68271.0,68270.0,0.03171539]
[1722068022022,1.19079634,68271.0,68270.0,0.03171539]
[1722068022222,1.16774565,68271.0,68270.0,0.03171539]
[1722068024042,0.87479565,68271.0,68270.0,0.03171539]
[1722068024239,0.58196786,68271.0,68270.0,0.11471539]
[1722068024486,0.4212597,68271.0,68270.0,0.18001539]
[1722068024733,0.14254286,68271.0,68270.0,0.18001539]
[1722068025585,0.09096399,68271.0,68270.0,0.18001539]
[1722068025798,0.16497164,68271.0,68270.0,0.18001539]
[1722068026002,0.05778386,68271.0,68270.0,0.18001539]
[1722068026173,0.05870785,68271.0,68270.0,0.18001539]
[1722068026698,0.05778386,68271.0,68270.0,0.18001539]
[1722068027042,0.05870785,68271.0,68270.0,0.18001539]
[1722068027932,0.05778386,68271.0,68270.0,0.18001539]
[1722068028131,0.05870785,68271.0,68270.0,0.18001539]
[1722068028535,0.05778386,68271.0,68270.0,0.18001539]
[1722068028738,0.08169563,68271.0,68270.0,0.18001539]
[1722068028953,0.08077164,68271.0,68270.0,0.18001539]
[1722068029716,0.08077164,68271.0,68270.0,0.32649239]
[1722068030045,0.08077164,68271.0,68270.0,0.18001539]
[1722068030384,0.05778386,68271.0,68270.0,0.18001539]
[1722068031406,0.05578386,68271.0,68270.0,0.18001539]
[1722068031952,0.05578386,68271.0,68270.0,0.18295767]
[1722068032161,0.05278386,68271.0,68270.0,0.18295767]
[1722068032391,0.05278386,68271.0,68270.0,0.18395767]
[1722068032513,0.04950032,68271.0,68270.0,0.18395767]
[1722068034816,0.04949047,68271.0,68270.0,0.18395767]
[1722068035222,0.07247824,68271.0,68270.0,0.18095767]
[1722068035428,0.07247824,68271.0,68270.0,0.17995767]
[1722068035642,0.07247824,68271.0,68270.0,0.18595767]
[1722068038079,0.0724338,68271.0,68270.0,0.18595767]
[1722068038719,0.0724338,68271.0,68270.0,0.33243467]
[1722068039682,0.0724338,68271.0,68270.0,0.18595767]
[1722068040330,0.0724338,68271.0,68270.0,0.33243467]
[1722068041092,0.04941803,68271.0,68270.0,0.18595767]
[1722068041276,0.04941803,68271.0,68270.0,0.33243467]
[1722068042274,0.04941803,68271.0,68270.0,0.18595767]
[1722068042686,0.04941803,68271.0,68270.0,0.33243467]
[1722068043684,0.04941803,68271.0,68270.0,0.33043467]
[1722068044019,0.04941803,68271.0,68270.0,0.33343467]
[1722068044174,0.04941803,68271.0,68270.0,0.32943467]
[1722068044511,0.07240581,68271.0,68270.0,0.33443467]
[1722068044714,0.05041803,68271.0,68270.0,0.33443467]
[1722068044868,0.05005659,68271.0,68270.0,0.33443467]
[1722068046846,0.05005659,68271.0,68270.0,0.18795767]
[1722068047089,0.1352383,68271.0,68270.0,0.18795767]
[1722068047300,0.2817133,68271.0,68270.0,0.18795767]
[1722068047456,0.59666937,68271.0,68270.0,0.03965767]
[1722068047660,0.25514134,68271.0,68270.0,0.03965767]
[1722068047863,0.30343538,68271.0,68270.0,0.03965767]
[1722068048059,0.59638538,68271.0,68270.0,0.03965767]
[1722068048305,0.30343538,68271.0,68270.0,0.03965767]
[1722068048875,0.88933538,68271.0,68270.0,0.03965767]
[1722068049077,0.8663476,68271.0,68270.0,0.03965767]
[1722068049301,0.5733976,68271.0,68270.0,0.03965767]
[1722068049751,1.5020976,68271.0,68270.0,0.03965767]
[1722068051227,1.5510976,68271.0,68270.0,0.03465767]
[1722068051633,1.5510976,68271.0,68270.0,0.03165767]
[1722068052131,2.0950476,68271.0,68270.0,0.03165767]
[1722068052290,1.025412,68265.0,68264.0,0.14999999]
[1722068052491,1.29480604,68265.0,68264.0,0.14999999]
[1722068052994,1.34480604,68265.0,68264.0,0.14999999]
[1722068053399,1.29480604,68265.0,68264.0,0.14999999]
[1722068053709,1.29780604,68265.0,68264.0,0.14999999]
[1722068054354,2.07883104,68265.0,68264.0,0.14999999]
[1722068054590,2.16555465,68265.0,68264.0,0.01390959]
[1722068054793,2.45852965,68265.0,68264.0,0.01390959]
[1722068054994,2.46052965,68265.0,68264.0,0.01390959]
[1722068055338,2.45752965,68265.0,68264.0,0.01390959]
[1722068055540,2.46952965,68265.0,68264.0,0.01390959]
[1722068055668,2.59793737,68265.0,68264.0,0.01390959]
[1722068056092,2.59893737,68265.0,68264.0,0.01390959]
[1722068056294,2.59893737,68265.0,68258.0,0.10230438]
[1722068056295,2.118504,68259.0,68258.0,0.10230438]
[1722068056638,2.66267165,68259.0,68258.0,0.06027392]
[1722068057064,2.95567265,68259.0,68258.0,0.06027392]
[1722068057969,2.96967265,68259.0,68258.0,0.06027392]
[1722068058173,3.11993222,68259.0,68258.0,0.06027392]
[1722068058374,3.26741814,68259.0,68258.0,0.06027392]
[1722068058506,3.28141814,68259.0,68258.0,0.06027392]
[1722068058716,3.13393222,68259.0,68258.0,0.06027392]
[1722068058944,3.28843222,68259.0,68258.0,0.00880883]
[1722068059154,1.843571,68253.0,68252.0,0.12623672]
[1722068059356,2.16278865,68253.0,68252.0,0.12623672]
[1722068060105,2.07858865,68253.0,68252.0,0.12623672]
[1722068060277,2.16278865,68253.0,68252.0,0.12623672]
[1722068061668,2.17678865,68253.0,68252.0,0.12623672]
[1722068062254,2.22337694,68253.0,68252.0,0.12623672]
[1722068062699,1.619521,68253.0,68252.0,0.12623672]
[1722068063001,1.81540726,68253.0,68252.0,0.12623672]
[1722068063177,1.8228086,68253.0,68252.0,0.12623672]
[1722068063578,1.2726816,68253.0,68252.0,0.12623672]
[1722068063779,1.3568816,68253.0,68252.0,0.12623672]
[1722068064421,1.33388472,68253.0,68252.0,0.12623672]
[1722068064582,1.33421975,68253.0,68252.0,0.12623672]
[1722068067042,1.33575429,68253.0,68252.0,0.12623672]
[1722068067205,1.44318549,68253.0,68252.0,0.12623672]
[1722068067732,1.51618195,68253.0,68252.0,0.12623672]
[1722068067889,1.65721621,68253.0,68252.0,0.12623672]
[1722068068896,1.65721621,68253.0,68252.0,0.12716072]
[1722068069546,1.95024321,68253.0,68252.0,0.12716072]
[1722068069946,2.10050278,68253.0,68252.0,0.12716072]
[1722068070145,2.24800278,68253.0,68252.0,0.12716072]
[1722068070847,2.33611278,68253.0,68252.0,0.12716072]
[1722068071424,2.24847709,68253.0,68252.0,0.12716072]
[1722068071793,2.33571591,68253.0,68252.0,0.12716072]
[1722068071947,2.18545634,68253.0,68252.0,0.12716072]
[1722068073137,2.16245988,68253.0,68252.0,0.12716072]
[1722068073289,2.28168605,68253.0,68252.0,0.12716072]
[1722068074910,2.28187941,68253.0,68252.0,0.12716072]
[1722068075534,2.39081898,68253.0,68252.0,0.12716072]
[1722068076259,2.30487726,68253.0,68252.0,0.12716072]
[1722068076750,2.28187941,68253.0,68252.0,0.12716072]
[1722068077730,1.41904241,68253.0,68252.0,0.12716072]
[1722068077935,1.50324241,68253.0,68252.0,0.12716072]
[1722068078131,1.44936918,68253.0,68252.0,0.12716072]
[1722068078334,1.41903018,68253.0,68252.0,0.12716072]
[1722068078581,1.56858239,68253.0,68252.0,0.12716072]
[1722068079399,1.56858239,68253.0,68252.0,0.19176072]
[1722068079966,1.52622706,68253.0,68252.0,0.12716072]
[1722068080391,1.56858239,68253.0,68252.0,0.12716072]
[1722068080609,1.54680574,68253.0,68252.0,0.12716072]
[1722068081214,1.54680774,68253.0,68252.0,0.12716072]
[1722068081420,1.50323018,68253.0,68252.0,0.12716072]
[1722068081786,1.50348196,68253.0,68252.0,0.12716072]
[1722068082350,1.50348202,68253.0,68252.0,0.12716072]
[1722068083111,1.75348202,68253.0,68252.0,0.12716072]
[1722068083306,1.77647885,68253.0,68252.0,0.12716072]
[1722068083515,1.77632199,68253.0,68252.0,0.12716072]
[1722068083917,1.83506699,68253.0,68252.0,0.12716072]
[1722068084113,2.11299574,68253.0,68252.0,0.12716072]
[1722068084335,2.19229574,68253.0,68252.0,0.12716072]
[1722068084950,2.01903934,68253.0,68252.0,0.12716072]
[1722068085182,1.95367016,68253.0,68252.0,0.12716072]
[1722068085547,1.9766518,68253.0,68252.0,0.12716072]
[1722068085714,1.97667779,68253.0,68252.0,0.12716072]
[1722068087429,2.06378705,68253.0,68252.0,0.12716072]
[1722068087785,2.21404662,68253.0,68252.0,0.12716072]
[1722068088531,1.97663811,68253.0,68252.0,0.12716072]
[1722068089371,2.08557429,68253.0,68252.0,0.12716072]
[1722068089908,1.94397429,68253.0,68252.0,0.12716072]
[1722068090130,1.69397429,68253.0,68252.0,0.12716072]
[1722068090336,1.58499996,68253.0,68252.0,0.12716072]
[1722068091312,1.71697812,68253.0,68252.0,0.12716072]
[1722068092232,1.58499996,68253.0,68252.0,0.12716072]
[1722068092469,1.83499996,68253.0,68252.0,0.12716072]
[1722068092854,1.58499996,68253.0,68252.0,0.12716072]
[1722068093932,1.5846171,68253.0,68252.0,0.12716072]
[1722068094060,1.8346171,68253.0,68252.0,0.12716072]
[1722068094261,1.5846171,68253.0,68252.0,0.12716072]
[1722068094465,1.8346171,68253.0,68252.0,0.12716072]
[1722068094667,1.5846171,68253.0,68252.0,0.12716072]
[1722068094868,1.8346171,68253.0,68252.0,0.12716072]
[1722068095312,1.85761401,68253.0,68252.0,0.12716072]
[1722068095717,1.60761401,68253.0,68252.0,0.12716072]
[1722068096333,1.60761401,68253.0,68252.0,0.20336072]
[1722068096535,1.60761401,68253.0,68252.0,0.26336072]
[1722068096536,0.88736001,68253.0,68252.0,0.26336072]
[1722068096772,0.8643631,68253.0,68252.0,0.26336072]
[1722068096977,0.72234027,68253.0,68252.0,0.26336072]
[1722068097117,0.8316283,68253.0,68252.0,0.26336072]
[1722068097317,0.24204806,68253.0,68252.0,0.26336072]
[1722068097520,0.71774176,68253.0,68252.0,0.26336072]
[1722068097770,0.72574176,68253.0,68252.0,0.26336072]
[1722068098175,0.71174176,68253.0,68252.0,0.26336072]
[1722068098376,0.60140877,68253.0,68252.0,0.26336072]
[1722068098595,0.60340877,68253.0,68252.0,0.26336072]
[1722068098732,0.59640877,68253.0,68252.0,0.26336072]
[1722068100614,0.59234611,68253.0,68252.0,0.26336072]
[1722068103388,0.59234245,68253.0,68252.0,0.26336072]
[1722068103590,0.61533722,68253.0,68252.0,0.26336072]
[1722068105363,0.59234245,68253.0,68252.0,0.26336072]
[1722068105958,0.29931545,68253.0,68252.0,0.26336072]
[1722068106477,0.59234245,68253.0,68252.0,0.26336072]
[1722068106772,0.50907506,68253.0,68252.0,0.26336072]
[1722068106986,0.59233497,68253.0,68252.0,0.26336072]
[1722068107485,0.17578979,68253.0,68252.0,0.70290672]
[1722068107686,0.11704479,68253.0,68252.0,1.02530772]
[1722068107827,0.03378488,68253.0,68252.0,1.02530772]
[1722068108027,0.02499482,68253.0,68252.0,1.02530772]
[1722068109158,0.02599482,68253.0,68252.0,1.02530772]
[1722068109691,0.003,68253.0,68252.0,1.02530772]
[1722068109893,0.001,68253.0,68252.0,1.02530772]
[1722068110096,0.002,68253.0,68252.0,1.02530772]
[1722068110506,0.002,68253.0,68252.0,0.73227672]
[1722068110731,0.002,68253.0,68252.0,0.70290672]
[1722068111067,0.56945209,68253.0,68252.0,0.26336072]
[1722068111490,0.56745209,68253.0,68252.0,0.26336072]
[1722068111699,0.52374,68253.0,68252.0,0.26336072]
[1722068111901,0.52574,68253.0,68252.0,0.26336072]
[1722068112111,0.817767,68253.0,68252.0,0.26336072]
[1722068112604,0.818767,68253.0,68252.0,0.26336072]
[1722068112837,1.110794,68253.0,68252.0,0.12716072]
[1722068113045,1.44837299,68253.0,68252.0,0.12716072]
[1722068113246,1.30647915,68253.0,68252.0,0.12716072]
[1722068113589,1.224194,68253.0,68252.0,0.12716072]
[1722068113745,1.25776176,68253.0,68252.0,0.12716072]
[1722068113955,1.25931596,68253.0,68252.0,0.12716072]
[1722068114522,1.26431596,68253.0,68252.0,0.12716072]
[1722068114993,1.26731596,68253.0,68252.0,0.12716072]
[1722068115182,2.47676253,68253.0,68252.0,0.12716072]
[1722068115382,2.69090993,68253.0,68252.0,0.06726248]
[1722068115732,2.54065036,68253.0,68252.0,0.05226248]
[1722068116281,2.5636476,68253.0,68252.0,0.05226248]
[1722068116485,2.5746476,68253.0,68252.0,0.05226248]
[1722068116706,2.3246476,68253.0,68252.0,0.05226248]
[1722068116929,2.0316206,68253.0,68252.0,0.05226248]
[1722068117115,2.2816206,68253.0,68252.0,0.05226248]
[1722068117349,2.2726206,68253.0,68252.0,0.05226248]
[1722068117571,2.5546476,68253.0,68252.0,0.05226248]
[1722068117745,2.55965036,68253.0,68252.0,0.05226248]
[1722068117946,2.54565036,68253.0,68252.0,0.05226248]
[1722068118625,2.69590993,68253.0,68252.0,0.05226248]
[1722068119721,2.048276,68248.0,68247.0,0.14999999]
[1722068119927,2.43174536,68248.0,68247.0,0.14999999]
[1722068120347,2.44820623,68248.0,68247.0,0.13042999]
[1722068120548,2.80932819,68248.0,68247.0,0.13042999]
[1722068121131,2.81932819,68248.0,68247.0,0.13042999]
[1722068121315,2.83132819,68248.0,68247.0,0.13042999]
[1722068121943,2.83132819,68248.0,68247.0,0.11720807]
[1722068123071,2.76325423,68248.0,68247.0,0.11720807]
[1722068123634,2.78274503,68248.0,68247.0,0.11720807]
[1722068124424,2.80574445,68248.0,68247.0,0.11720807]
[1722068125932,2.80574445,68248.0,68247.0,0.10620807]
[1722068126501,2.95314553,68248.0,68247.0,0.10620807]
[1722068126698,2.93014611,68248.0,68247.0,0.10620807]
[1722068126923,2.84594611,68248.0,68247.0,0.07535452]
[1722068127080,2.69492498,68248.0,68247.0,0.07535452]
[1722068127285,2.93254715,68248.0,68247.0,0.07535452]
[1722068128000,2.78514617,68248.0,68247.0,0.07535452]
[1722068128199,2.86554868,68248.0,68247.0,0.07535452]
[1722068129431,2.94408177,68248.0,68247.0,0.07535452]
[1722068129931,2.96708116,68248.0,68247.0,0.07535452]
[1722068130372,2.94408177,68248.0,68247.0,0.07535452]
[1722068130579,2.95112397,68248.0,68247.0,0.07535452]
[1722068132253,1.706993,68242.0,68241.0,0.14999999]